[Event "Klatovy Open-C 2024"]
[Site "Klatovy"]
[Date "2024.07.05"]
[Round "7.1"]
[White "Navratil, Jiri"]
[Black "Kopta, Pavel"]
[Result "1/2-1/2"]
[ECO "A30"]
[WhiteElo "2058"]
[BlackElo "2193"]
[Annotator "RC"]
[PlyCount "41"]
[EventDate "2024.06.21"]
[EventType "swiss"]
[EventCountry "CZE"]
[SourceTitle "playchess.com"]
[Source "ChessBase"]
[SourceQuality "1"]
[TimeControl "40/7200:0"]

1. d4 {[%emt 0:00:00]} Nf6 {[%emt 0:00:00]} 2. Nf3 {[%emt 0:00:00]} c5 {[%emt 0:00:00]} 3. e3 {[%emt 0:00:00]} e6 {[%emt 0:02:50]} 4. Be2 {[%emt 0:00:00]} Be7 {[%emt 0:00:32]} 5. O-O {[%emt 0:00:00]} O-O {[%emt 0:00:00]} 6. c4 {[%emt 0:03:12]} Qc7 {[%emt 0:05:04]} 7. Nc3 {[%emt 0:00:45]} a6 {[%emt 0:00:00]} 8. b3 {[%emt 0:01:59]} b6 {[%emt 0:02:21]} 9. Bb2 {[%emt 0:00:13]} Bb7 {[%emt 0:00:39]} 10. Rc1 {[%emt 0:06:09]} d6 {[%emt 0:00:43]} 11. d5 {[%emt 0:00:39]} exd5 {[%emt 0:01:12]} 12. Nxd5 {[%emt 0:00:00]} Nxd5 {[%emt 0:00:00]} 13. cxd5 {[%emt 0:00:00]} Nd7 {[%emt 0:00:00]} 14. e4 {[%emt 0:01:14]} Rae8 {[%emt 0:03:55]} 15. Bd3 {[%emt 0:00:00]} Bf6 {[%emt 0:01:28]} 16. Qc2 {[%emt 0:00:00]} Bxb2 {[%emt 0:08:32]} 17. Qxb2 {[%emt 0:00:00]} b5 {[%emt 0:00:06]} 18. a4 {[%emt 0:01:22]} Qb6 {[%emt 0:03:54]} 19. axb5 {[%emt 0:02:05]} axb5 {[%emt 0:00:00]} 20. Qc2 {[%emt 0:03:21]} Nf6 {[%emt 0:05:14]} 21. Rfe1 {[%emt 0:03:58]} 1/2-1/2

[Event "Klatovy Open-C 2024"]
[Site "Klatovy"]
[Date "2024.07.05"]
[Round "7.3"]
[White "Korsa, Jindrich"]
[Black "Danko, Jiri"]
[Result "1-0"]
[ECO "C62"]
[WhiteElo "2036"]
[BlackElo "1954"]
[Annotator "NA RC"]
[PlyCount "78"]
[EventDate "2024.06.21"]
[EventType "swiss"]
[EventCountry "CZE"]
[SourceTitle "playchess.com"]
[Source "ChessBase"]
[SourceQuality "1"]
[TimeControl "40/7200:0"]

1. e4 {[%emt 0:00:00]} e5 {[%emt 0:00:00]} 2. Nf3 {[%emt 0:00:00]} Nc6 {[%emt 0:00:00]} 3. Nc3 {[%emt 0:00:00]} Nf6 {[%emt 0:00:00]} 4. Bb5 {[%emt 0:00:00]} d6 {[%emt 0:00:15]} 5. d4 {[%emt 0:00:00]} exd4 {[%emt 0:00:00]} 6. Nxd4 {[%emt 0:00:00]} Bd7 {[%emt 0:00:00]} 7. O-O {[%emt 0:00:00]} Nxd4 {[%emt 0:06:48]} 8. Bxd7+ {[%emt 0:00:00]} Qxd7 {[%emt 0:04:44]} 9. Qxd4 {[%emt 0:00:00]} Be7 {[%emt 0:08:44]} 10. b3 {[%emt 0:00:00]} O-O {[%emt 0:10:41]} 11. Bb2 {[%emt 0:00:00]} Qe6 {[%emt 0:16:47]} 12. Nd5 {[%emt 0:06:17]} Bd8 {[%emt 0:00:21]} 13. Rfe1 {[%emt 0:11:18]} Re8 {[%emt 0:19:00]} 14. c4 {[%emt 0:16:00]} a5 {[%emt 0:15:15]} 15. Rad1 {[%emt 0:01:16]} a4 {[%emt 0:15:39]} 16. b4 {[%emt 0:09:07]} Rc8 {[%emt 0:02:57]} 17. Re3 {[%emt 0:06:31]} c5 {[%emt 0:00:00]} 18. bxc5 {[%emt 0:01:39]} dxc5 {[%emt 0:01:08]} 19. Qc3 {[%emt 0:00:06]} Kf8 {[%emt 0:00:25]} 20. f3 {[%emt 0:04:20]} Qa6 {[%emt 0:01:30]} 21. e5 {[%emt 0:08:25]} Nxd5 {[%emt 0:04:04]} 22. cxd5 {[%emt 0:00:13]} b5 {[%emt 0:00:54]} 23. e6 {[%emt 0:00:07]} Bf6 {[%emt 0:00:00]} 24. Qc2 {[%emt 0:01:56]} Bxb2 {[%emt 0:00:00]} 25. Qxb2 {[%emt 0:00:04]} Qd6 {[%emt 0:00:22]} 26. Qc2 {[%emt 0:03:19]} g6 {[%emt 0:01:08]} 27. Qb2 {[%emt 0:00:00]} Kg8 {[%emt 0:00:45]} 28. exf7+ {[%emt 0:00:55]} Kxf7 {[%emt 0:00:00]} 29. Rxe8 {[%emt 0:00:00]} Rxe8 {[%emt 0:00:14]} 30. Qxb5 {[%emt 0:00:00]} Rc8 {[%emt 0:00:55]} 31. Qxa4 {[%emt 0:00:00]} c4 {[%emt 0:00:00]} 32. Qa7+ {[%emt 0:00:00]} Rc7 {[%emt 0:00:00]} 33. Qd4 {[%emt 0:00:00]} c3 {[%emt 0:00:00]} 34. Rc1 {[%emt 0:00:00]} c2 {[%emt 0:00:00]} 35. Qd3 {[%emt 0:00:13]} Qc5+ {[%emt 0:00:00]} 36. Kf1 {[%emt 0:00:00]} Ke7 {[%emt 0:00:00]} 37. d6+ {[%emt 0:00:00]} Qxd6 {[%emt 0:00:00]} 38. Qxd6+ {[%emt 0:00:00]} Kxd6 39. Ke2 {[%emt 0:00:00]} Ke7 {[%emt 0:07:24]} 1-0

[Event "Klatovy Open-C 2024"]
[Site "Klatovy"]
[Date "2024.07.05"]
[Round "7.4"]
[White "Zahorbensky, Jaroslav"]
[Black "Novotny, Jaroslav"]
[Result "1-0"]
[ECO "B52"]
[WhiteElo "2032"]
[BlackElo "2172"]
[Annotator "RC"]
[PlyCount "111"]
[EventDate "2024.06.21"]
[EventType "swiss"]
[EventCountry "CZE"]
[SourceTitle "playchess.com"]
[Source "ChessBase"]
[SourceQuality "1"]
[TimeControl "40/7200:0"]

1. e4 {[%emt 0:00:00]} c5 {[%emt 0:00:00]} 2. Nf3 {[%emt 0:00:00]} d6 {[%emt 0:00:00]} 3. Bb5+ {[%emt 0:00:00]} Bd7 {[%emt 0:00:00]} 4. Bxd7+ {[%emt 0:00:00]} Nxd7 {[%emt 0:00:00]} 5. c4 {[%emt 0:00:00]} Ngf6 {[%emt 0:00:00]} 6. Nc3 {[%emt 0:00:00]} g6 {[%emt 0:00:00]} 7. d3 {[%emt 0:00:00]} Bg7 {[%emt 0:00:00]} 8. Bg5 {[%emt 0:00:00]} O-O {[%emt 0:00:00]} 9. Qd2 {[%emt 0:00:00]} a6 {[%emt 0:06:43]} 10. O-O {[%emt 0:00:08]} Re8 {[%emt 0:03:33]} 11. Ne1 {[%emt 0:01:57]} Nf8 {[%emt 0:06:18]} 12. Nc2 {[%emt 0:06:29]} Ne6 {[%emt 0:01:10]} 13. Bh6 {[%emt 0:06:51]} Bh8 {[%emt 0:00:09]} 14. h3 {[%emt 0:06:00]} Nd4 {[%emt 0:11:15]} 15. Nxd4 {[%emt 0:04:32]} cxd4 {[%emt 0:00:00]} 16. Ne2 {[%emt 0:00:00]} e5 {[%emt 0:15:02]} 17. Bg5 {[%emt 0:07:31]} Qc7 {[%emt 0:06:01]} 18. f4 {[%emt 0:08:17]} Nd7 {[%emt 0:00:29]} 19. f5 {[%emt 0:00:00]} f6 {[%emt 0:01:39]} 20. Bh4 {[%emt 0:02:40]} Bg7 {[%emt 0:03:09]} 21. fxg6 {[%emt 0:02:36]} hxg6 {[%emt 0:00:00]} 22. g4 {[%emt 0:00:00]} Rf8 {[%emt 0:02:44]} 23. Rf3 {[%emt 0:00:25]} Rf7 {[%emt 0:01:57]} 24. Raf1 {[%emt 0:00:00]} Raf8 {[%emt 0:00:00]} 25. Be1 {[%emt 0:06:00]} Nc5 {[%emt 0:05:05]} 26. Qc1 {[%emt 0:00:30]} Qd7 {[%emt 0:01:28]} 27. Ng3 {[%emt 0:05:51]} Kh7 {[%emt 0:06:21]} 28. Bd2 {[%emt 0:00:00]} b6 {[%emt 0:00:12]} 29. Kg2 {[%emt 0:00:00]} Ne6 {[%emt 0:02:58]} 30. R1f2 {[%emt 0:03:11]} Kg8 {[%emt 0:02:25]} 31. b3 {[%emt 0:00:08]} Kh7 {[%emt 0:00:00]} 32. Kh2 {[%emt 0:04:12]} Kg8 {[%emt 0:00:27]} 33. Qf1 {[%emt 0:02:59]} a5 {[%emt 0:00:37]} 34. Kg2 {[%emt 0:00:01]} Qe7 {[%emt 0:02:04]} 35. h4 {[%emt 0:05:01]} Qd7 {[%emt 0:07:58]} 36. h5 {[%emt 0:00:00]} g5 {[%emt 0:03:11]} 37. Nf5 {[%emt 0:00:00]} Nf4+ {[%emt 0:01:10]} 38. Bxf4 {[%emt 0:01:31]} gxf4 {[%emt 0:00:00]} 39. Rh3 {[%emt 0:00:01]} Kh7 {[%emt 0:00:08]} 40. h6 {[%emt 0:00:14]} Bh8 {[%emt 0:25:47]} 41. Kf3 {[%emt 2:42:55]} Rg8 {[%emt 1:38:48]} 42. Qc1 {[%emt 0:00:00]} Qc6 {[%emt 0:03:24]} 43. Qa3 {[%emt 0:00:00]} Rd7 {[%emt 0:00:03]} 44. Rb2 {[%emt 0:00:00]} Ra8 {[%emt 0:03:10]} 45. Qa4 {[%emt 0:00:00]} Rc8 {[%emt 0:01:22]} 46. Rh1 {[%emt 0:00:00]} Ra7 {[%emt 0:01:32]} 47. Rhb1 {[%emt 0:00:00]} b5 {[%emt 0:03:33]} 48. Qxb5 {[%emt 0:00:00]} Qxb5 {[%emt 0:00:00]} 49. cxb5 {[%emt 0:00:00]} Rc3 {[%emt 0:00:00]} 50. Ke2 {[%emt 0:00:00]} Kg6 {[%emt 0:02:34]} 51. Rd2 {[%emt 0:00:00]} Kg5 {[%emt 0:00:30]} 52. Nxd6 {[%emt 0:00:00]} Rd7 {[%emt 0:01:12]} 53. Nf5 {[%emt 0:00:00]} Kxg4 {[%emt 0:00:37]} 54. Rg1+ {[%emt 0:00:00]} Kh5 {[%emt 0:00:00]} 55. Kd1 {[%emt 0:00:00]} Rdc7 {[%emt 0:00:00]} 56. Rh2# {[%emt 0:00:00]} 1-0

[Event "Klatovy Open-C 2024"]
[Site "Klatovy"]
[Date "2024.07.05"]
[Round "7.5"]
[White "Zidu, Jan"]
[Black "Ondrejat, Miroslav"]
[Result "1/2-1/2"]
[ECO "B27"]
[WhiteElo "1905"]
[BlackElo "1940"]
[Annotator "NA RC"]
[PlyCount "162"]
[EventDate "2024.06.21"]
[EventType "swiss"]
[EventCountry "CZE"]
[SourceTitle "playchess.com"]
[Source "ChessBase"]
[SourceQuality "1"]
[TimeControl "40/7200:0"]

1. e4 {[%emt 0:00:00]} c5 {[%emt 0:00:00]} 2. Nc3 {[%emt 0:00:00]} g6 {[%emt 0:00:00]} 3. d4 {[%emt 0:00:00]} cxd4 {[%emt 0:00:00]} 4. Qxd4 {[%emt 0:00:00]} Nf6 {[%emt 0:00:00]} 5. Nf3 {[%emt 0:00:00]} Nc6 {[%emt 0:00:00]} 6. Qa4 {[%emt 0:00:00]} Bg7 {[%emt 0:12:16]} 7. e5 {[%emt 0:00:00]} Ng8 {[%emt 0:00:00]} 8. Bf4 {[%emt 0:00:00]} Nh6 {[%emt 0:00:00]} 9. h3 {[%emt 0:17:34]} O-O {[%emt 0:00:00]} 10. Bb5 {[%emt 0:11:45]} Kh8 {[%emt 0:19:36]} 11. O-O-O {[%emt 0:05:25]} Ng8 {[%emt 0:08:35]} 12. Rhe1 {[%emt 0:01:45]} e6 {[%emt 0:09:38]} 13. Ne4 {[%emt 0:40:28]} h6 {[%emt 0:12:13]} 14. Nd6 {[%emt 0:06:13]} f5 {[%emt 0:03:13]} 15. h4 {[%emt 0:01:50]} a6 {[%emt 0:06:22]} 16. Rd3 {[%emt 0:06:18]} Rb8 {[%emt 0:01:48]} 17. Bxc6 {[%emt 0:00:00]} bxc6 {[%emt 0:00:00]} 18. Rb3 {[%emt 0:04:40]} Rxb3 {[%emt 0:07:43]} 19. Qxb3 {[%emt 0:12:05]} Qc7 {[%emt 0:10:48]} 20. Nc4 {[%emt 0:04:52]} Ne7 {[%emt 0:05:23]} 21. Bd2 {[%emt 0:00:00]} c5 {[%emt 0:01:35]} 22. Qb6 {[%emt 0:00:00]} Qxb6 23. Nxb6 {[%emt 0:00:00]} Nd5 {[%emt 0:03:31]} 24. Nxc8 {[%emt 0:00:00]} Rxc8 {[%emt 0:00:00]} 25. c4 {[%emt 0:00:00]} Ne7 {[%emt 0:03:24]} 26. g3 {[%emt 0:00:00]} Kg8 {[%emt 0:02:26]} 27. Bc3 {[%emt 0:00:00]} Kf7 {[%emt 0:00:00]} 28. Rd1 {[%emt 0:00:23]} Ke8 {[%emt 0:00:00]} 29. Ne1 {[%emt 0:00:12]} Nc6 {[%emt 0:01:20]} 30. f4 {[%emt 0:01:06]} Bf8 {[%emt 0:00:00]} 31. Nf3 {[%emt 0:00:16]} Kd8 {[%emt 0:00:56]} 32. b3 {[%emt 0:00:58]} Kc7 {[%emt 0:00:00]} 33. h5 {[%emt 0:00:00]} gxh5 {[%emt 0:01:11]} 34. Rh1 {[%emt 0:00:00]} Ne7 {[%emt 0:04:10]} 35. Rxh5 {[%emt 0:00:00]} Nc6 {[%emt 0:00:29]} 36. Rh4 {[%emt 0:00:16]} Ne7 {[%emt 0:00:00]} 37. Rh2 {[%emt 0:00:00]} Nc6 {[%emt 0:00:00]} 38. Kd2 {[%emt 0:00:00]} Rd8 {[%emt 0:00:00]} 39. Ke3 {[%emt 0:00:00]} Rb8 {[%emt 0:00:00]} 40. Nh4 {[%emt 0:00:00]} d5 {[%emt 0:00:00]} 41. exd6+ {[%emt 1:59:59]} Bxd6 {[%emt 2:00:07]} 42. Ng6 {[%emt 0:00:00]} Rg8 {[%emt 0:00:04]} 43. Rxh6 {[%emt 0:00:25]} Kb6 {[%emt 0:01:22]} 44. Kf3 {[%emt 0:00:00]} a5 {[%emt 0:00:00]} 45. Ne5 {[%emt 0:00:00]} Bxe5 {[%emt 0:00:00]} 46. fxe5 {[%emt 0:00:14]} Re8 {[%emt 0:00:00]} 47. a3 {[%emt 0:00:48]} Nd4+ {[%emt 0:00:23]} 48. Bxd4 {[%emt 0:00:00]} cxd4 {[%emt 0:00:00]} 49. b4 {[%emt 0:00:00]} axb4 {[%emt 0:00:29]} 50. axb4 {[%emt 0:02:28]} Kc6 {[%emt 0:00:58]} 51. Ke2 {[%emt 0:00:00]} Kd7 {[%emt 0:00:00]} 52. Kd3 {[%emt 0:00:00]} Rg8 {[%emt 0:00:00]} 53. Kxd4 {[%emt 0:00:00]} Rxg3 {[%emt 0:00:00]} 54. Kc5 {[%emt 0:00:00]} Rd3 {[%emt 0:00:00]} 55. Rh7+ {[%emt 0:00:00]} Ke8 {[%emt 0:00:00]} 56. Rh4 {[%emt 0:00:00]} Re3 {[%emt 0:00:00]} 57. Kd6 {[%emt 0:00:00]} Re4 {[%emt 0:00:00]} 58. Rh8+ {[%emt 0:00:00]} Kf7 {[%emt 0:00:00]} 59. Rh7+ {[%emt 0:00:00]} Kg8 {[%emt 0:00:00]} 60. Rc7 {[%emt 0:00:00]} f4 {[%emt 0:00:00]} 61. b5 {[%emt 0:00:00]} f3 {[%emt 0:00:00]} 62. b6 {[%emt 0:00:00]} Rd4+ {[%emt 0:00:00]} 63. Kxe6 {[%emt 0:00:00]} Rd8 {[%emt 0:00:00]} 64. Ra7 {[%emt 0:00:00]} Rc8 {[%emt 0:00:00]} 65. b7 {[%emt 0:00:00]} Rb8 {[%emt 0:00:00]} 66. Ra2 {[%emt 0:00:00]} Rxb7 {[%emt 0:00:00]} 67. Rf2 {[%emt 0:00:00]} Rf7 {[%emt 0:00:00]} 68. c5 {[%emt 0:00:00]} Kf8 {[%emt 0:00:00]} 69. Kd6 {[%emt 0:00:00]} Ke8 {[%emt 0:00:00]} 70. e6 {[%emt 0:00:00]} Rf4 {[%emt 0:00:00]} 71. c6 {[%emt 0:00:00]} Rd4+ {[%emt 0:00:00]} 72. Kc5 {[%emt 0:00:00]} Rd3 {[%emt 0:00:00]} 73. c7 {[%emt 0:00:00]} Rc3+ {[%emt 0:00:00]} 74. Kd6 {[%emt 0:00:00]} Rd3+ {[%emt 0:00:00]} 75. Kc6 {[%emt 0:00:00]} Rc3+ {[%emt 0:00:00]} 76. Kb7 {[%emt 0:00:00]} Rb3+ {[%emt 0:00:00]} 77. Kc6 {[%emt 0:00:00]} Rc3+ {[%emt 0:00:00]} 78. Kd6 {[%emt 0:00:00]} Rd3+ {[%emt 0:00:00]} 79. Ke5 {[%emt 0:00:00]} Rc3 {[%emt 0:00:00]} 80. Rxf3 {[%emt 0:00:00]} Rxc7 {[%emt 0:00:00]} 81. Rh3 {[%emt 1:59:18]} Rc1 {[%emt 1:56:49]} 1/2-1/2

[Event "Klatovy Open-C 2024"]
[Site "Klatovy"]
[Date "2024.07.05"]
[Round "7.6"]
[White "Hlavac, Rudolf"]
[Black "Berka, Lubos"]
[Result "1-0"]
[ECO "B15"]
[WhiteElo "1927"]
[BlackElo "1835"]
[Annotator "NA RC"]
[PlyCount "88"]
[EventDate "2024.06.21"]
[EventType "swiss"]
[EventCountry "CZE"]
[SourceTitle "playchess.com"]
[Source "ChessBase"]
[SourceQuality "1"]
[TimeControl "40/7200:0"]

1. e4 {[%emt 0:00:00]} c6 {[%emt 0:00:00]} 2. d4 {[%emt 0:00:00]} d5 {[%emt 0:00:00]} 3. Nc3 {[%emt 0:00:00]} dxe4 {[%emt 0:00:00]} 4. Nxe4 {[%emt 0:00:00]} Nf6 {[%emt 0:00:00]} 5. Nxf6+ {[%emt 0:00:00]} exf6 {[%emt 0:00:00]} 6. c3 {[%emt 0:00:00]} Bd6 {[%emt 0:00:00]} 7. Bd3 {[%emt 0:00:00]} O-O {[%emt 0:00:00]} 8. Ne2 {[%emt 0:00:00]} Qc7 {[%emt 0:00:00]} 9. Qc2 {[%emt 0:00:00]} g6 {[%emt 0:00:00]} 10. h3 {[%emt 0:01:03]} Re8 {[%emt 0:03:33]} 11. O-O {[%emt 0:01:07]} f5 {[%emt 0:00:57]} 12. c4 {[%emt 0:01:51]} b6 {[%emt 0:04:18]} 13. c5 {[%emt 0:02:41]} bxc5 {[%emt 0:01:04]} 14. dxc5 {[%emt 0:00:00]} Be5 {[%emt 0:00:30]} 15. Bd2 {[%emt 0:03:12]} f4 {[%emt 0:05:07]} 16. f3 {[%emt 0:02:48]} Nd7 {[%emt 0:12:23]} 17. Rad1 {[%emt 0:03:03]} Nf6 {[%emt 0:00:18]} 18. b4 {[%emt 0:04:28]} Nd5 {[%emt 0:07:32]} 19. a4 {[%emt 0:02:48]} Be6 {[%emt 0:06:41]} 20. Rb1 {[%emt 0:04:56]} Qc8 {[%emt 0:04:38]} 21. Be4 {[%emt 0:05:15]} g5 {[%emt 0:05:14]} 22. b5 {[%emt 0:18:41]} h5 {[%emt 0:09:39]} 23. Rf2 {[%emt 0:07:52]} g4 {[%emt 0:10:22]} 24. fxg4 {[%emt 0:02:38]} hxg4 {[%emt 0:00:23]} 25. hxg4 {[%emt 0:00:41]} Ne3 {[%emt 0:05:46]} 26. Bxe3 {[%emt 0:03:25]} fxe3 {[%emt 0:00:00]} 27. Rf3 {[%emt 0:00:37]} Bd5 {[%emt 0:02:18]} 28. Bxd5 {[%emt 0:00:58]} cxd5 {[%emt 0:00:00]} 29. Rbf1 {[%emt 0:01:05]} Re7 {[%emt 0:00:39]} 30. Rf5 {[%emt 0:05:24]} f6 {[%emt 0:03:57]} 31. g5 {[%emt 0:00:45]} Rh7 {[%emt 0:00:46]} 32. Nf4 {[%emt 0:04:53]} Qc7 {[%emt 0:02:07]} 33. gxf6 {[%emt 0:01:27]} Bd4 {[%emt 0:02:51]} 34. Qe2 {[%emt 0:02:23]} Re8 {[%emt 0:08:10]} 35. Rg5+ {[%emt 0:10:19]} Kf7 {[%emt 0:08:22]} 36. Rg7+ {[%emt 0:04:42]} Rxg7 {[%emt 0:00:00]} 37. fxg7 {[%emt 0:00:00]} Kg8 {[%emt 0:00:00]} 38. Kh1 {[%emt 0:01:52]} Qxg7 {[%emt 0:02:48]} 39. c6 {[%emt 0:02:48]} Re4 {[%emt 0:03:18]} 40. g3 {[%emt 0:07:07]} Re7 {[%emt 0:03:33]} 41. Kg2 {[%emt 2:02:02]} Re5 {[%emt 2:00:10]} 42. Qf3 {[%emt 0:00:22]} Rf5 {[%emt 0:01:53]} 43. Qe2 {[%emt 0:01:45]} Rg5 {[%emt 0:00:00]} 44. Rf3 {[%emt 0:00:00]} Qh7 {[%emt 0:00:43]} 1-0

[Event "Klatovy Open-C 2024"]
[Site "Klatovy"]
[Date "2024.07.05"]
[Round "7.7"]
[White "Kriha, Pavel"]
[Black "Mlynek, Petr"]
[Result "0-1"]
[ECO "D31"]
[WhiteElo "1877"]
[BlackElo "1969"]
[Annotator "NA RC"]
[PlyCount "72"]
[EventDate "2024.06.21"]
[EventType "swiss"]
[EventCountry "CZE"]
[SourceTitle "playchess.com"]
[Source "ChessBase"]
[SourceQuality "1"]
[TimeControl "40/7200:0"]

1. c4 {[%emt 0:00:00]} c6 {[%emt 0:00:00]} 2. Nc3 {[%emt 0:00:00]} d5 {[%emt 0:00:00]} 3. d4 {[%emt 0:00:00]} e6 {[%emt 0:00:00]} 4. Nf3 {[%emt 0:00:00]} dxc4 {[%emt 0:00:00]} 5. a4 {[%emt 0:00:00]} Bb4 {[%emt 0:00:00]} 6. Bd2 {[%emt 0:00:00]} b5 {[%emt 0:01:05]} 7. axb5 {[%emt 0:00:00]} Bxc3 {[%emt 0:00:00]} 8. Bxc3 {[%emt 0:00:00]} cxb5 {[%emt 0:00:00]} 9. e3 {[%emt 0:00:00]} Qb6 {[%emt 0:00:51]} 10. Ba5 {[%emt 0:00:00]} Qb7 {[%emt 0:00:01]} 11. b3 {[%emt 0:00:00]} cxb3 {[%emt 0:04:24]} 12. Qxb3 {[%emt 0:00:00]} a6 {[%emt 0:00:00]} 13. Be2 {[%emt 0:00:00]} Nc6 {[%emt 0:02:06]} 14. Bd2 {[%emt 0:00:00]} Nf6 {[%emt 0:00:16]} 15. O-O {[%emt 0:00:00]} O-O {[%emt 0:01:16]} 16. Rfc1 {[%emt 0:00:00]} Bd7 {[%emt 0:04:33]} 17. Bd3 {[%emt 0:01:06]} Rfc8 {[%emt 0:02:29]} 18. e4 {[%emt 0:03:55]} Ne7 {[%emt 0:05:56]} 19. Re1 {[%emt 0:00:00]} Bc6 {[%emt 0:01:44]} 20. Bb4 {[%emt 0:00:48]} Ng6 {[%emt 0:00:19]} 21. Nd2 {[%emt 0:01:02]} Qd7 {[%emt 0:04:01]} 22. Bc3 {[%emt 0:02:44]} Bb7 {[%emt 0:00:00]} 23. Re3 {[%emt 0:14:52]} Rc7 {[%emt 0:05:43]} 24. Qb2 {[%emt 0:04:27]} Nf4 {[%emt 0:00:52]} 25. Bf1 {[%emt 0:00:40]} Rac8 {[%emt 0:04:09]} 26. g3 {[%emt 0:00:39]} N4d5 {[%emt 0:02:45]} 27. exd5 {[%emt 0:00:13]} Nxd5 {[%emt 0:00:00]} 28. Ne4 {[%emt 0:03:03]} Nxe3 {[%emt 0:00:00]} 29. Nc5 {[%emt 1:26:31]} Rxc5 {[%emt 1:17:30]} 30. dxc5 {[%emt 0:00:00]} Nxf1 {[%emt 0:00:00]} 31. Bxg7 {[%emt 0:00:00]} Nd2 {[%emt 0:00:00]} 32. Bh6 {[%emt 0:00:00]} Nf3+ {[%emt 0:00:00]} 33. Kg2 {[%emt 0:00:00]} e5 {[%emt 0:00:00]} 34. Ra3 {[%emt 0:00:00]} Qc6 {[%emt 0:00:00]} 35. Be3 {[%emt 0:00:00]} Nd2+ {[%emt 0:00:00]} 36. Kh3 {[%emt 0:00:00]} Nc4 {[%emt 0:00:00]} 0-1

[Event "Klatovy Open-C 2024"]
[Site "Klatovy"]
[Date "2024.07.05"]
[Round "7.8"]
[White "Vavrinek, Tomas"]
[Black "Fiser, Jiri"]
[Result "1/2-1/2"]
[ECO "A85"]
[WhiteElo "1827"]
[BlackElo "2134"]
[Annotator "RC"]
[PlyCount "113"]
[EventDate "2024.06.21"]
[EventType "swiss"]
[EventCountry "CZE"]
[SourceTitle "playchess.com"]
[Source "ChessBase"]
[SourceQuality "1"]
[TimeControl "40/7200:0"]

1. d4 {[%emt 0:00:00]} f5 {[%emt 0:00:00]} 2. c4 {[%emt 0:00:02]} Nf6 {[%emt 0:00:00]} 3. Nc3 {[%emt 0:00:00]} g6 {[%emt 0:00:00]} 4. Nf3 {[%emt 0:00:00]} Bg7 {[%emt 0:00:00]} 5. e3 {[%emt 0:00:26]} d6 {[%emt 0:00:00]} 6. Be2 {[%emt 0:01:50]} O-O {[%emt 0:00:00]} 7. O-O {[%emt 0:02:49]} e6 {[%emt 0:00:00]} 8. b4 {[%emt 0:03:01]} a5 {[%emt 0:00:00]} 9. b5 {[%emt 0:04:08]} Nbd7 {[%emt 0:00:41]} 10. a4 {[%emt 0:00:42]} b6 {[%emt 0:00:00]} 11. Bb2 {[%emt 0:00:43]} Qe7 {[%emt 0:01:05]} 12. Qc2 {[%emt 0:02:34]} Bb7 {[%emt 0:00:00]} 13. Rad1 {[%emt 0:05:04]} h6 {[%emt 0:06:22]} 14. Nd2 {[%emt 0:00:43]} g5 {[%emt 0:00:00]} 15. Bf3 {[%emt 0:01:48]} Bxf3 {[%emt 0:01:18]} 16. Nxf3 {[%emt 0:00:00]} Nh5 {[%emt 0:13:01]} 17. d5 {[%emt 0:08:11]} e5 {[%emt 0:00:00]} 18. e4 {[%emt 0:00:00]} g4 {[%emt 0:00:53]} 19. Ne1 {[%emt 0:01:13]} f4 {[%emt 0:00:17]} 20. g3 {[%emt 0:04:50]} Rf7 {[%emt 0:31:23]} 21. Ng2 {[%emt 0:01:59]} Bf6 {[%emt 0:02:36]} 22. Bc1 {[%emt 0:00:08]} Bg5 {[%emt 0:00:00]} 23. Bd2 {[%emt 0:07:15]} Raf8 {[%emt 0:01:30]} 24. Rde1 {[%emt 0:02:58]} Ng7 {[%emt 0:07:28]} 25. Qc1 {[%emt 0:16:25]} Nc5 {[%emt 0:01:11]} 26. Qc2 {[%emt 0:01:10]} h5 {[%emt 0:01:21]} 27. Bc1 {[%emt 0:02:25]} h4 {[%emt 0:00:42]} 28. gxf4 {[%emt 0:04:22]} exf4 {[%emt 0:00:00]} 29. Rd1 {[%emt 0:00:08]} Nh5 {[%emt 0:09:59]} 30. e5 {[%emt 0:03:22]} dxe5 {[%emt 0:02:05]} 31. Qg6+ {[%emt 0:01:26]} Ng7 {[%emt 0:00:00]} 32. d6 {[%emt 0:00:17]} Qf6 {[%emt 0:03:25]} 33. Qxf6 {[%emt 0:02:14]} Bxf6 {[%emt 0:00:00]} 34. dxc7 {[%emt 0:00:00]} Rxc7 {[%emt 0:15:55]} 35. Nd5 {[%emt 0:00:00]} Rb7 {[%emt 0:00:11]} 36. Ba3 {[%emt 0:05:53]} h3 {[%emt 0:00:46]} 37. Ne1 {[%emt 0:00:00]} Nge6 {[%emt 0:04:57]} 38. Nd3 {[%emt 0:01:44]} Kf7 {[%emt 0:02:37]} 39. Nxb6 {[%emt 0:04:43]} Rxb6 {[%emt 0:04:56]} 40. Nxc5 {[%emt 0:00:00]} Rg8 {[%emt 0:00:39]} 41. Nd7 {[%emt 2:02:30]} Rb7 {[%emt 2:00:08]} 42. Nxf6 {[%emt 0:00:00]} Kxf6 {[%emt 0:00:00]} 43. c5 {[%emt 0:00:00]} Nd4 {[%emt 0:00:00]} 44. c6 {[%emt 0:00:38]} Rbg7 {[%emt 0:00:00]} 45. Bc5 {[%emt 0:05:32]} Ne2+ {[%emt 0:00:02]} 46. Kh1 {[%emt 0:00:00]} Nc3 {[%emt 0:01:29]} 47. Rd6+ {[%emt 0:00:17]} Kf5 {[%emt 0:00:00]} 48. Bb6 {[%emt 0:00:21]} Nxa4 {[%emt 0:00:00]} 49. Bxa5 {[%emt 0:00:00]} Ra8 {[%emt 0:00:16]} 50. Bd8 {[%emt 0:01:12]} Ke4 {[%emt 0:01:14]} 51. Re1+ {[%emt 0:01:31]} Kf3 {[%emt 0:00:00]} 52. Rd3+ {[%emt 0:00:00]} Kxf2 {[%emt 0:00:00]} 53. Rxe5 {[%emt 0:01:07]} g3 {[%emt 0:00:00]} 54. Rd2+ {[%emt 0:02:33]} Kf1 {[%emt 0:00:00]} 55. Rd1+ {[%emt 0:05:11]} Kf2 {[%emt 0:00:00]} 56. Rd2+ {[%emt 0:01:16]} Kf1 {[%emt 0:00:00]} 57. Rd1+ {[%emt 0:00:16]} 1/2-1/2

[Event "Klatovy Open-C 2024"]
[Site "Klatovy"]
[Date "2024.07.05"]
[Round "7.10"]
[White "Novotny, Jaromir"]
[Black "Vachal, Josef"]
[Result "1/2-1/2"]
[ECO "C11"]
[WhiteElo "1788"]
[BlackElo "2099"]
[Annotator "NA RC"]
[PlyCount "35"]
[EventDate "2024.06.21"]
[EventType "swiss"]
[EventCountry "CZE"]
[SourceTitle "playchess.com"]
[Source "ChessBase"]
[SourceQuality "1"]
[TimeControl "40/7200:0"]

1. e4 {[%emt 0:00:00]} e6 {[%emt 0:00:00]} 2. d4 {[%emt 0:00:00]} d5 {[%emt 0:00:00]} 3. Nc3 {[%emt 0:00:00]} Nf6 {[%emt 0:00:00]} 4. e5 {[%emt 0:00:00]} Nfd7 {[%emt 0:00:00]} 5. f4 {[%emt 0:03:11]} c5 {[%emt 0:00:00]} 6. Nf3 {[%emt 0:00:00]} Nc6 {[%emt 0:00:00]} 7. Bb5 {[%emt 0:00:00]} Qb6 {[%emt 0:00:31]} 8. Bxc6 {[%emt 0:00:16]} bxc6 {[%emt 0:00:21]} 9. Na4 {[%emt 0:00:39]} Qa5+ {[%emt 0:00:24]} 10. c3 {[%emt 0:00:00]} cxd4 {[%emt 0:03:12]} 11. Nxd4 {[%emt 0:03:18]} c5 {[%emt 0:00:23]} 12. Nf3 {[%emt 0:00:56]} Ba6 {[%emt 0:00:23]} 13. Bd2 {[%emt 0:00:00]} Qc7 {[%emt 0:08:28]} 14. b3 {[%emt 0:01:33]} Rb8 {[%emt 0:03:39]} 15. Kf2 {[%emt 0:01:41]} Be7 {[%emt 0:00:05]} 16. Re1 {[%emt 0:00:00]} Bb5 {[%emt 0:07:30]} 17. Nb2 {[%emt 0:00:00]} O-O {[%emt 0:05:52]} 18. Kg1 {[%emt 1:48:26]} 1/2-1/2